[Event "Champions Chess Tour Finals 2024"]
[Date "2024.12.19"]
[White "Vachier-Lagrave, Maxime"]
[Black "So, Wesley"]
[WhiteElo "2763"]
[BlackElo "2826"]
[Round "7.1"]
[Result "1/2-1/2"]
[TimeControl "600+2"]

1. e4 {[%clk 0:10:02]} e5 {[%clk 0:10:02]} 2. Nf3 {[%clk 0:10:03]} Nc6 {[%clk
0:10:03]} 3. Bb5 {[%clk 0:10:04]} Nf6 {[%clk 0:10:04]} 4. d3 {[%clk 0:10:05]} d6
{[%clk 0:10:02]} 5. O-O {[%clk 0:09:59]} Be7 {[%clk 0:10:02]} 6. c3 {[%clk
0:09:59]} O-O {[%clk 0:10:00]} 7. Re1 {[%clk 0:09:58]} a6 {[%clk 0:09:55]} 8.
Ba4 {[%clk 0:09:55]} b5 {[%clk 0:09:55]} 9. Bc2 {[%clk 0:09:51]} d5 {[%clk
0:09:12]} 10. Nbd2 {[%clk 0:09:32]} dxe4 {[%clk 0:08:34]} 11. Nxe4 {[%clk
0:09:15]} Nxe4 {[%clk 0:08:24]} 12. dxe4 {[%clk 0:09:16]} Be6 {[%clk 0:08:08]}
13. Be3 {[%clk 0:08:53]} Qxd1 {[%clk 0:07:53]} 14. Rexd1 {[%clk 0:08:09]} f6
{[%clk 0:07:36]} 15. Ne1 {[%clk 0:07:20]} Na5 {[%clk 0:06:36]} 16. Nd3 {[%clk
0:07:20]} Rfd8 {[%clk 0:06:14]} 17. Nc5 {[%clk 0:06:41]} Bxc5 {[%clk 0:06:04]}
18. Bxc5 {[%clk 0:06:40]} Kf7 {[%clk 0:06:02]} 19. Kf1 {[%clk 0:06:04]} Nb7
{[%clk 0:04:55]} 20. Be3 {[%clk 0:06:01]} Na5 {[%clk 0:04:38]} 21. Rxd8 {[%clk
0:05:48]} Rxd8 {[%clk 0:04:39]} 22. b3 {[%clk 0:05:49]} g5 {[%clk 0:04:21]} 23.
Ke2 {[%clk 0:05:26]} h5 {[%clk 0:04:19]} 24. f3 {[%clk 0:05:13]} h4 {[%clk
0:04:18]} 25. Kf2 {[%clk 0:04:51]} c5 {[%clk 0:04:09]} 26. Ke2 {[%clk 0:04:37]}
Nb7 {[%clk 0:04:01]} 27. a4 {[%clk 0:03:04]} b4 {[%clk 0:04:01]} 28. cxb4 {[%clk
0:03:05]} cxb4 {[%clk 0:04:02]} 29. a5 {[%clk 0:03:06]} Rc8 {[%clk 0:03:12]} 30.
Bd3 {[%clk 0:03:00]} Rc6 {[%clk 0:02:58]} 31. Ra4 {[%clk 0:02:05]} Bxb3 {[%clk
0:02:30]} 32. Rxb4 {[%clk 0:02:06]} Nxa5 {[%clk 0:02:31]} 33. Bb6 {[%clk
0:01:18]} Nc4 {[%clk 0:02:31]} 34. Bf2 {[%clk 0:01:14]} Ba2 {[%clk 0:02:01]} 35.
Ra4 {[%clk 0:01:15]} Bb3 {[%clk 0:02:02]} 36. Rb4 {[%clk 0:01:16]} Ba2 {[%clk
0:02:03]} 1/2-1/2

[Variant "Standard"]
[Site "Europe Echecs"]

[Event "Champions Chess Tour Finals 2024"]
[Date "2024.12.19"]
[White "Keymer, Vincent"]
[Black "Firouzja, Alireza"]
[WhiteElo "2649"]
[BlackElo "2756"]
[Round "7.2"]
[Result "0-1"]
[TimeControl "600+2"]

1. Nf3 {[%clk 0:10:02]} Nf6 {[%clk 0:09:59]} 2. g3 {[%clk 0:10:00]} g6 {[%clk
0:09:31]} 3. Bg2 {[%clk 0:09:59]} Bg7 {[%clk 0:09:32]} 4. c4 {[%clk 0:10:00]}
O-O {[%clk 0:09:27]} 5. Nc3 {[%clk 0:09:51]} d6 {[%clk 0:09:25]} 6. d4 {[%clk
0:09:50]} c5 {[%clk 0:09:22]} 7. d5 {[%clk 0:09:39]} e6 {[%clk 0:09:13]} 8. O-O
{[%clk 0:09:39]} exd5 {[%clk 0:09:14]} 9. cxd5 {[%clk 0:09:40]} Re8 {[%clk
0:09:09]} 10. Re1 {[%clk 0:09:42]} Na6 {[%clk 0:08:34]} 11. h3 {[%clk 0:09:21]}
Nc7 {[%clk 0:08:26]} 12. e4 {[%clk 0:09:11]} Nd7 {[%clk 0:05:59]} 13. Bf4 {[%clk
0:09:12]} Ne5 {[%clk 0:05:10]} 14. Nxe5 {[%clk 0:09:12]} Bxe5 {[%clk 0:05:00]}
15. Bxe5 {[%clk 0:09:11]} dxe5 {[%clk 0:04:59]} 16. d6 {[%clk 0:07:23]} Ne6
{[%clk 0:04:57]} 17. Nd5 {[%clk 0:07:23]} Kg7 {[%clk 0:04:08]} 18. b4 {[%clk
0:06:48]} b6 {[%clk 0:03:33]} 19. bxc5 {[%clk 0:06:39]} bxc5 {[%clk 0:03:34]}
20. f4 {[%clk 0:06:00]} Rb8 {[%clk 0:02:34]} 21. fxe5 {[%clk 0:04:35]} Qg5
{[%clk 0:02:35]} 22. Qf3 {[%clk 0:04:32]} Qxe5 {[%clk 0:02:29]} 23. Rf1 {[%clk
0:04:32]} Rf8 {[%clk 0:01:32]} 24. Qf6+ {[%clk 0:04:31]} Qxf6 {[%clk 0:01:32]}
25. Nxf6 {[%clk 0:04:32]} Rd8 {[%clk 0:01:20]} 26. e5 {[%clk 0:04:30]} Nd4
{[%clk 0:01:21]} 27. Ne4 {[%clk 0:03:57]} Bf5 {[%clk 0:00:44]} 28. Nxc5 {[%clk
0:02:53]} Rb5 {[%clk 0:00:45]} 29. Nb7 {[%clk 0:02:55]} Rd7 {[%clk 0:00:37]} 30.
Rfd1 {[%clk 0:02:31]} Ne2+ {[%clk 0:00:32]} 31. Kf2 {[%clk 0:02:30]} Nc3 {[%clk
0:00:16]} 32. Rd4 {[%clk 0:01:36]} Rb2+ {[%clk 0:00:12]} 33. Kf1 {[%clk
0:01:35]} Rbxb7 {[%clk 0:00:07]} 34. Bxb7 {[%clk 0:01:34]} Rxb7 {[%clk 0:00:09]}
35. g4 {[%clk 0:01:23]} Be6 {[%clk 0:00:10]} 36. Rc1 {[%clk 0:01:24]} Nd5 {[%clk
0:00:09]} 37. a4 {[%clk 0:00:56]} Nb6 {[%clk 0:00:06]} 38. Rc7 {[%clk 0:00:48]}
Rb8 {[%clk 0:00:06]} 39. Rb4 {[%clk 0:00:19]} Ra8 {[%clk 0:00:04]} 40. Rd4
{[%clk 0:00:05]} Nd7 {[%clk 0:00:05]} 41. Re4 {[%clk 0:00:05]} a5 {[%clk
0:00:06]} 42. Kf2 {[%clk 0:00:04]} g5 {[%clk 0:00:06]} 43. Re3 {[%clk 0:00:04]}
Rb8 {[%clk 0:00:07]} 44. Ra7 {[%clk 0:00:05]} Rb2+ {[%clk 0:00:05]} 45. Ke1
{[%clk 0:00:06]} Rb1+ {[%clk 0:00:04]} 46. Kd2 {[%clk 0:00:08]} Nb6 {[%clk
0:00:05]} 47. Kc2 {[%clk 0:00:09]} Ra1 {[%clk 0:00:06]} 48. Ra6 {[%clk 0:00:08]}
Nc4 {[%clk 0:00:06]} 49. Re4 {[%clk 0:00:06]} Ra2+ {[%clk 0:00:06]} 50. Kc3
{[%clk 0:00:07]} Ra3+ {[%clk 0:00:07]} 51. Kd4 {[%clk 0:00:07]} Nd2 {[%clk
0:00:08]} 52. Re2 {[%clk 0:00:05]} Rxa4+ {[%clk 0:00:06]} 53. Kc5 {[%clk
0:00:06]} Nb3+ {[%clk 0:00:06]} 54. Kb6 {[%clk 0:00:07]} Rb4+ {[%clk 0:00:06]}
55. Kc7 {[%clk 0:00:06]} Nd4 {[%clk 0:00:06]} 56. Rd2 {[%clk 0:00:06]} Rc4+
{[%clk 0:00:04]} 57. Kb6 {[%clk 0:00:07]} Nf3 {[%clk 0:00:03]} 58. d7 {[%clk
0:00:07]} Bxd7 {[%clk 0:00:05]} 59. Rxd7 {[%clk 0:00:07]} Nxe5 {[%clk 0:00:05]}
60. Rd5 {[%clk 0:00:06]} Re4 {[%clk 0:00:06]} 61. Kxa5 {[%clk 0:00:07]} h6
{[%clk 0:00:06]} 62. Ra7 {[%clk 0:00:06]} Nc6+ {[%clk 0:00:05]} 63. Kb6 {[%clk
0:00:06]} Nxa7 {[%clk 0:00:06]} 64. Kxa7 {[%clk 0:00:07]} Re3 {[%clk 0:00:08]}
65. h4 {[%clk 0:00:05]} gxh4 {[%clk 0:00:08]} 66. Rh5 {[%clk 0:00:07]} h3 {[%clk
0:00:08]} 67. Kb6 {[%clk 0:00:08]} f6 {[%clk 0:00:06]} 68. Kc6 {[%clk 0:00:06]}
Kg6 {[%clk 0:00:07]} 69. Kd6 {[%clk 0:00:08]} Rg3 {[%clk 0:00:05]} 70. Kd5
{[%clk 0:00:09]} Rxg4 {[%clk 0:00:05]} 71. Rxh3 {[%clk 0:00:10]} h5 {[%clk
0:00:06]} 72. Ra3 {[%clk 0:00:08]} h4 {[%clk 0:00:06]} 73. Ra8 {[%clk 0:00:09]}
Kf5 {[%clk 0:00:06]} 74. Rh8 {[%clk 0:00:09]} Kf4 {[%clk 0:00:07]} 75. Ke6
{[%clk 0:00:10]} f5 {[%clk 0:00:05]} 76. Rh5 {[%clk 0:00:11]} Kg3 {[%clk
0:00:05]} 77. Rxf5 {[%clk 0:00:07]} h3 {[%clk 0:00:06]} 78. Ra5 {[%clk 0:00:04]}
h2 {[%clk 0:00:06]} 79. Ra3+ {[%clk 0:00:05]} Kh4 {[%clk 0:00:06]} 80. Ra8
{[%clk 0:00:05]} Rg1 {[%clk 0:00:07]} 81. Rh8+ {[%clk 0:00:05]} Kg3 {[%clk
0:00:08]} 0-1

[Variant "Standard"]
[Site "Europe Echecs"]

[Event "Champions Chess Tour Finals 2024"]
[Date "2024.12.19"]
[White "Aronian, Levon"]
[Black "Nepomniachtchi, Ian"]
[WhiteElo "2818"]
[BlackElo "2758"]
[Round "7.2"]
[Result "1/2-1/2"]
[TimeControl "600+2"]

1. e4 {[%clk 0:10:03]} e5 {[%clk 0:10:03]} 2. Bc4 {[%clk 0:10:04]} Nf6 {[%clk
0:10:03]} 3. d3 {[%clk 0:10:05]} c6 {[%clk 0:10:03]} 4. Nf3 {[%clk 0:10:06]} d5
{[%clk 0:10:04]} 5. Bb3 {[%clk 0:10:06]} a5 {[%clk 0:10:04]} 6. a4 {[%clk
0:10:07]} Bb4+ {[%clk 0:10:03]} 7. c3 {[%clk 0:10:07]} Bd6 {[%clk 0:10:04]} 8.
exd5 {[%clk 0:10:08]} cxd5 {[%clk 0:10:04]} 9. Bg5 {[%clk 0:10:07]} Be6 {[%clk
0:10:01]} 10. Na3 {[%clk 0:10:08]} Nbd7 {[%clk 0:09:57]} 11. Nb5 {[%clk
0:10:09]} Bb8 {[%clk 0:09:58]} 12. d4 {[%clk 0:09:51]} e4 {[%clk 0:09:55]} 13.
Nd2 {[%clk 0:09:52]} h6 {[%clk 0:09:46]} 14. Bh4 {[%clk 0:09:52]} Nf8 {[%clk
0:09:22]} 15. f3 {[%clk 0:08:34]} Ng6 {[%clk 0:09:11]} 16. Bxf6 {[%clk 0:08:33]}
Qxf6 {[%clk 0:09:11]} 17. g3 {[%clk 0:08:34]} exf3 {[%clk 0:06:58]} 18. Qxf3
{[%clk 0:08:15]} Qxf3 {[%clk 0:06:31]} 19. Nxf3 {[%clk 0:08:16]} Kd7 {[%clk
0:06:25]} 20. O-O {[%clk 0:07:41]} Bd6 {[%clk 0:06:20]} 21. Rf2 {[%clk 0:05:38]}
Rae8 {[%clk 0:06:15]} 22. Bc2 {[%clk 0:05:15]} Ne7 {[%clk 0:06:12]} 23. Nh4
{[%clk 0:05:16]} Bb8 {[%clk 0:05:56]} 24. Raf1 {[%clk 0:05:05]} Ref8 {[%clk
0:05:34]} 25. Kg2 {[%clk 0:04:37]} h5 {[%clk 0:05:33]} 26. Nf3 {[%clk 0:03:49]}
f6 {[%clk 0:05:22]} 27. Nh4 {[%clk 0:03:50]} Re8 {[%clk 0:05:12]} 28. Re1 {[%clk
0:03:23]} Bf7 {[%clk 0:04:50]} 29. Rfe2 {[%clk 0:03:24]} g5 {[%clk 0:03:37]} 30.
Nf5 {[%clk 0:03:18]} Nxf5 {[%clk 0:03:38]} 31. Bxf5+ {[%clk 0:03:19]} Kd8 {[%clk
0:03:39]} 32. Be6 {[%clk 0:03:12]} Bxe6 {[%clk 0:03:40]} 33. Rxe6 {[%clk
0:03:13]} Kd7 {[%clk 0:03:41]} 34. Rxe8 {[%clk 0:03:02]} Rxe8 {[%clk 0:03:42]}
35. Rxe8 {[%clk 0:03:02]} Kxe8 {[%clk 0:03:44]} 36. b3 {[%clk 0:03:04]} Kd7
{[%clk 0:03:33]} 37. c4 {[%clk 0:03:04]} Ke6 {[%clk 0:03:30]} 38. Nc3 {[%clk
0:03:00]} dxc4 {[%clk 0:03:23]} 39. bxc4 {[%clk 0:03:01]} f5 {[%clk 0:03:23]}
40. c5 {[%clk 0:02:44]} Bc7 {[%clk 0:03:10]} 41. Kf3 {[%clk 0:02:13]} Bd8 {[%clk
0:02:50]} 42. Ke3 {[%clk 0:01:53]} Bf6 {[%clk 0:02:49]} 43. Kd3 {[%clk 0:01:41]}
Bg7 {[%clk 0:02:30]} 44. Nb5 {[%clk 0:01:18]} h4 {[%clk 0:02:10]} 45. gxh4
{[%clk 0:00:45]} gxh4 {[%clk 0:02:11]} 46. h3 {[%clk 0:00:45]} Bf8 {[%clk
0:01:58]} 47. Nc7+ {[%clk 0:00:43]} Kd7 {[%clk 0:01:47]} 48. Nd5 {[%clk
0:00:44]} Ke6 {[%clk 0:01:31]} 49. Nf4+ {[%clk 0:00:42]} Kf6 {[%clk 0:01:29]}
50. Ng2 {[%clk 0:00:16]} Kg5 {[%clk 0:01:29]} 51. Kc4 {[%clk 0:00:18]} f4 {[%clk
0:01:29]} 52. Ne1 {[%clk 0:00:19]} Kf5 {[%clk 0:01:28]} 53. Kd3 {[%clk 0:00:12]}
Be7 {[%clk 0:01:26]} 54. Nf3 {[%clk 0:00:14]} Bd8 {[%clk 0:01:21]} 55. d5 {[%clk
0:00:15]} Bf6 {[%clk 0:01:22]} 56. c6 {[%clk 0:00:11]} bxc6 {[%clk 0:01:22]} 57.
dxc6 {[%clk 0:00:13]} Ke6 {[%clk 0:01:20]} 58. Kc4 {[%clk 0:00:08]} Kd6 {[%clk
0:01:21]} 59. Kb5 {[%clk 0:00:10]} Bd8 {[%clk 0:01:21]} 60. Nd2 {[%clk 0:00:04]}
Kd5 {[%clk 0:01:20]} 61. Nf3 {[%clk 0:00:06]} Kd6 {[%clk 0:01:21]} 62. Ne1
{[%clk 0:00:04]} Kd5 {[%clk 0:01:21]} 63. Nf3 {[%clk 0:00:03]} Kd6 {[%clk
0:01:21]} 1/2-1/2

[Variant "Standard"]
[Site "Europe Echecs"]

[Event "Champions Chess Tour Finals 2024"]
[Date "2024.12.19"]
[White "Lazavik, Denis"]
[Black "Carlsen, Magnus"]
[WhiteElo "2553"]
[BlackElo "2838"]
[Round "7.2"]
[Result "1/2-1/2"]
[TimeControl "600+2"]

1. Nf3 {[%clk 0:10:01]} Nf6 {[%clk 0:09:49]} 2. b3 {[%clk 0:10:01]} g6 {[%clk
0:09:49]} 3. Bb2 {[%clk 0:10:01]} Bg7 {[%clk 0:09:50]} 4. g3 {[%clk 0:09:59]} b6
{[%clk 0:09:51]} 5. Bg2 {[%clk 0:09:58]} Bb7 {[%clk 0:09:52]} 6. O-O {[%clk
0:09:57]} O-O {[%clk 0:09:51]} 7. c4 {[%clk 0:09:57]} e6 {[%clk 0:09:52]} 8. e3
{[%clk 0:09:46]} c5 {[%clk 0:09:35]} 9. d4 {[%clk 0:09:32]} Na6 {[%clk 0:09:35]}
10. Qe2 {[%clk 0:09:14]} d5 {[%clk 0:09:28]} 11. Rd1 {[%clk 0:09:08]} Qe7 {[%clk
0:09:26]} 12. Nc3 {[%clk 0:08:48]} Rfd8 {[%clk 0:09:21]} 13. cxd5 {[%clk
0:07:34]} exd5 {[%clk 0:09:22]} 14. Rac1 {[%clk 0:07:29]} Rac8 {[%clk 0:08:42]}
15. Bh3 {[%clk 0:07:07]} Ra8 {[%clk 0:07:56]} 16. Nb5 {[%clk 0:04:36]} Nb4
{[%clk 0:07:00]} 17. a3 {[%clk 0:04:26]} Na2 {[%clk 0:06:37]} 18. Ra1 {[%clk
0:04:05]} a6 {[%clk 0:06:38]} 19. Nc3 {[%clk 0:02:02]} Nxc3 {[%clk 0:06:37]} 20.
Bxc3 {[%clk 0:02:03]} c4 {[%clk 0:06:12]} 21. Bb4 {[%clk 0:01:49]} Qe8 {[%clk
0:06:03]} 22. a4 {[%clk 0:01:20]} a5 {[%clk 0:05:48]} 23. Be1 {[%clk 0:01:18]}
cxb3 {[%clk 0:05:28]} 24. Qb2 {[%clk 0:01:12]} b5 {[%clk 0:05:13]} 25. Qxb3
{[%clk 0:00:45]} b4 {[%clk 0:05:13]} 26. Rdc1 {[%clk 0:00:45]} Bc8 {[%clk
0:04:33]} 27. Bg2 {[%clk 0:00:32]} Ba6 {[%clk 0:04:33]} 28. Ne5 {[%clk 0:00:31]}
Rac8 {[%clk 0:04:34]} 29. Bh3 {[%clk 0:00:22]} Rxc1 {[%clk 0:04:21]} 30. Rxc1
{[%clk 0:00:23]} Ne4 {[%clk 0:03:48]} 31. Nc6 {[%clk 0:00:06]} Bc4 {[%clk
0:03:16]} 32. Rxc4 {[%clk 0:00:07]} dxc4 {[%clk 0:03:17]} 33. Qxc4 {[%clk
0:00:08]} Ra8 {[%clk 0:03:06]} 34. Bg2 {[%clk 0:00:08]} Kh8 {[%clk 0:02:10]} 35.
Qd5 {[%clk 0:00:09]} f5 {[%clk 0:02:07]} 36. Nxa5 {[%clk 0:00:08]} Rc8 {[%clk
0:01:54]} 37. Bxe4 {[%clk 0:00:06]} fxe4 {[%clk 0:01:39]} 38. Bxb4 {[%clk
0:00:07]} Qxa4 {[%clk 0:01:38]} 39. Qb7 {[%clk 0:00:04]} Qd1+ {[%clk 0:01:36]}
40. Kg2 {[%clk 0:00:06]} Qf3+ {[%clk 0:01:37]} 41. Kh3 {[%clk 0:00:07]} Qh5+
{[%clk 0:01:35]} 42. Kg2 {[%clk 0:00:08]} Qf3+ {[%clk 0:01:36]} 43. Kh3 {[%clk
0:00:09]} Qh5+ {[%clk 0:01:35]} 1/2-1/2

[Variant "Standard"]
[Site "Europe Echecs"]

[Event "Champions Chess Tour Finals 2024"]
[Date "2024.12.19"]
[White "So, Wesley"]
[Black "Vachier-Lagrave, Maxime"]
[WhiteElo "2826"]
[BlackElo "2763"]
[Round "7.2"]
[Result "1-0"]
[TimeControl "600+2"]

1. d4 {[%clk 0:10:03]} Nf6 {[%clk 0:10:03]} 2. c4 {[%clk 0:10:03]} g6 {[%clk
0:10:04]} 3. Nc3 {[%clk 0:10:03]} d5 {[%clk 0:10:05]} 4. Bg5 {[%clk 0:09:56]}
Ne4 {[%clk 0:10:00]} 5. Bh4 {[%clk 0:09:52]} Nxc3 {[%clk 0:09:46]} 6. bxc3
{[%clk 0:09:53]} dxc4 {[%clk 0:09:47]} 7. e3 {[%clk 0:09:53]} Be6 {[%clk
0:09:47]} 8. Nf3 {[%clk 0:09:43]} Nd7 {[%clk 0:09:35]} 9. Be2 {[%clk 0:07:39]}
Nb6 {[%clk 0:09:27]} 10. a4 {[%clk 0:07:23]} a5 {[%clk 0:09:28]} 11. O-O {[%clk
0:07:10]} Bg7 {[%clk 0:09:29]} 12. Qc2 {[%clk 0:06:46]} O-O {[%clk 0:09:25]} 13.
Rfb1 {[%clk 0:06:45]} Qd7 {[%clk 0:08:10]} 14. Bg3 {[%clk 0:05:56]} Bd5 {[%clk
0:07:49]} 15. e4 {[%clk 0:04:29]} Bc6 {[%clk 0:07:49]} 16. Rxb6 {[%clk 0:04:29]}
cxb6 {[%clk 0:07:51]} 17. d5 {[%clk 0:04:29]} Bxa4 {[%clk 0:07:51]} 18. Rxa4
{[%clk 0:04:30]} b5 {[%clk 0:07:52]} 19. Ra2 {[%clk 0:04:14]} b4 {[%clk
0:06:05]} 20. cxb4 {[%clk 0:03:53]} axb4 {[%clk 0:06:06]} 21. Bxc4 {[%clk
0:03:54]} Ra3 {[%clk 0:05:08]} 22. Ne5 {[%clk 0:02:49]} Qc8 {[%clk 0:05:09]} 23.
Rxa3 {[%clk 0:01:57]} bxa3 {[%clk 0:05:08]} 24. Qa2 {[%clk 0:01:58]} Qc5 {[%clk
0:02:14]} 25. Nd7 {[%clk 0:01:36]} Qb4 {[%clk 0:02:15]} 26. Nxf8 {[%clk
0:01:07]} b5 {[%clk 0:02:16]} 27. Bd3 {[%clk 0:00:42]} Bxf8 {[%clk 0:01:57]} 28.
h4 {[%clk 0:00:38]} Qe1+ {[%clk 0:01:54]} 29. Kh2 {[%clk 0:00:34]} b4 {[%clk
0:01:55]} 30. Bc4 {[%clk 0:00:33]} Qxe4 {[%clk 0:01:54]} 31. Bb3 {[%clk
0:00:22]} Qd3 {[%clk 0:01:44]} 32. d6 {[%clk 0:00:20]} e6 {[%clk 0:01:33]} 33.
Bxe6 {[%clk 0:00:21]} Bxd6 {[%clk 0:01:24]} 34. Bxf7+ {[%clk 0:00:21]} Kg7
{[%clk 0:01:18]} 35. Bxd6 {[%clk 0:00:18]} Qxd6+ {[%clk 0:01:18]} 36. g3 {[%clk
0:00:19]} Qf6 {[%clk 0:01:11]} 37. Bd5 {[%clk 0:00:17]} Qd4 {[%clk 0:01:09]} 38.
Kg2 {[%clk 0:00:17]} h6 {[%clk 0:01:09]} 39. Bb3 {[%clk 0:00:14]} Qe4+ {[%clk
0:01:10]} 40. Kh2 {[%clk 0:00:15]} Qf3 {[%clk 0:01:09]} 41. Kg1 {[%clk 0:00:14]}
Qc3 {[%clk 0:01:06]} 42. Qb1 {[%clk 0:00:15]} Kf6 {[%clk 0:01:01]} 43. Qd1
{[%clk 0:00:15]} Ke7 {[%clk 0:00:42]} 44. Qd5 {[%clk 0:00:15]} h5 {[%clk
0:00:28]} 45. Kg2 {[%clk 0:00:15]} Ke8 {[%clk 0:00:25]} 46. Qe6+ {[%clk
0:00:11]} Kd8 {[%clk 0:00:26]} 47. Qd6+ {[%clk 0:00:13]} Kc8 {[%clk 0:00:28]}
48. Be6+ {[%clk 0:00:11]} Kb7 {[%clk 0:00:29]} 49. Bd5+ {[%clk 0:00:12]} Ka7
{[%clk 0:00:29]} 50. Qxg6 {[%clk 0:00:12]} Qc5 {[%clk 0:00:24]} 51. Qxh5 {[%clk
0:00:08]} Kb6 {[%clk 0:00:19]} 52. Qf7 {[%clk 0:00:09]} 1-0

[Variant "Standard"]
[Site "Europe Echecs"]

[Event "Champions Chess Tour Finals 2024"]
[Date "2024.12.19"]
[White "Vachier-Lagrave, Maxime"]
[Black "Keymer, Vincent"]
[WhiteElo "2763"]
[BlackElo "2649"]
[Round "51.1"]
[Result "1-0"]
[TimeControl "600+2"]

1. e4 {[%clk 0:10:03]} e5 {[%clk 0:10:03]} 2. Nf3 {[%clk 0:10:04]} Nc6 {[%clk
0:10:04]} 3. Bb5 {[%clk 0:10:05]} a6 {[%clk 0:10:05]} 4. Ba4 {[%clk 0:10:06]}
Nf6 {[%clk 0:10:06]} 5. O-O {[%clk 0:10:07]} Be7 {[%clk 0:10:07]} 6. Re1 {[%clk
0:10:08]} O-O {[%clk 0:10:07]} 7. Bxc6 {[%clk 0:09:53]} bxc6 {[%clk 0:09:52]} 8.
Nxe5 {[%clk 0:09:52]} Bb7 {[%clk 0:09:47]} 9. Nc3 {[%clk 0:09:10]} Re8 {[%clk
0:09:46]} 10. Nf3 {[%clk 0:09:03]} c5 {[%clk 0:09:39]} 11. d3 {[%clk 0:08:58]}
d5 {[%clk 0:09:40]} 12. Bg5 {[%clk 0:08:30]} h6 {[%clk 0:08:35]} 13. Bh4 {[%clk
0:08:01]} dxe4 {[%clk 0:06:39]} 14. dxe4 {[%clk 0:08:01]} Nxe4 {[%clk 0:05:37]}
15. Qxd8 {[%clk 0:06:36]} Bxd8 {[%clk 0:04:43]} 16. Nxe4 {[%clk 0:06:27]} Bxe4
{[%clk 0:04:14]} 17. Nd2 {[%clk 0:06:20]} Bc6 {[%clk 0:03:53]} 18. Rxe8+ {[%clk
0:06:14]} Bxe8 {[%clk 0:03:53]} 19. Bxd8 {[%clk 0:06:02]} Rxd8 {[%clk 0:03:54]}
20. Nc4 {[%clk 0:06:03]} f6 {[%clk 0:03:46]} 21. Ne3 {[%clk 0:05:52]} Rd2 {[%clk
0:03:37]} 22. Rd1 {[%clk 0:04:34]} Rxd1+ {[%clk 0:03:38]} 23. Nxd1 {[%clk
0:04:35]} Kf7 {[%clk 0:03:39]} 24. f3 {[%clk 0:04:27]} Ke6 {[%clk 0:03:33]} 25.
Kf2 {[%clk 0:04:28]} g5 {[%clk 0:03:29]} 26. Ke3 {[%clk 0:04:21]} Bg6 {[%clk
0:03:26]} 27. c4 {[%clk 0:04:22]} Be8 {[%clk 0:02:41]} 28. g3 {[%clk 0:04:01]}
Bc6 {[%clk 0:02:25]} 29. Nf2 {[%clk 0:03:57]} h5 {[%clk 0:02:05]} 30. Nd3 {[%clk
0:02:57]} Kd6 {[%clk 0:02:06]} 31. f4 {[%clk 0:02:45]} h4 {[%clk 0:00:58]} 32.
gxh4 {[%clk 0:02:35]} gxh4 {[%clk 0:00:59]} 33. f5 {[%clk 0:02:22]} a5 {[%clk
0:00:31]} 34. Kf4 {[%clk 0:02:16]} Bg2 {[%clk 0:00:16]} 35. Nf2 {[%clk 0:02:11]}
Ke7 {[%clk 0:00:12]} 36. b3 {[%clk 0:01:34]} Bf1 {[%clk 0:00:10]} 37. Ne4 {[%clk
0:01:34]} Bd3 {[%clk 0:00:11]} 38. Nxc5 {[%clk 0:01:31]} Bb1 {[%clk 0:00:12]}
39. a3 {[%clk 0:01:18]} Ba2 {[%clk 0:00:08]} 40. Kg4 {[%clk 0:01:14]} a4 {[%clk
0:00:05]} 41. b4 {[%clk 0:00:59]} Bxc4 {[%clk 0:00:04]} 42. Nxa4 {[%clk
0:01:00]} Kd6 {[%clk 0:00:05]} 43. Kf4 {[%clk 0:00:57]} Kd5 {[%clk 0:00:05]} 44.
Nc3+ {[%clk 0:00:58]} Kd6 {[%clk 0:00:03]} 45. Ne4+ {[%clk 0:00:55]} Ke7 {[%clk
0:00:05]} 46. a4 {[%clk 0:00:56]} Bb3 {[%clk 0:00:04]} 47. a5 {[%clk 0:00:57]}
Bc4 {[%clk 0:00:04]} 48. Nd2 {[%clk 0:00:49]} Bd3 {[%clk 0:00:03]} 49. Nf3
{[%clk 0:00:49]} h3 {[%clk 0:00:04]} 50. Nd2 {[%clk 0:00:46]} Bb5 {[%clk
0:00:04]} 51. Ne4 {[%clk 0:00:47]} Bc4 {[%clk 0:00:05]} 52. Nf2 {[%clk 0:00:46]}
Kd6 {[%clk 0:00:07]} 53. Nxh3 {[%clk 0:00:32]} Kc6 {[%clk 0:00:08]} 54. Nf2
{[%clk 0:00:33]} Kb5 {[%clk 0:00:09]} 55. h4 {[%clk 0:00:34]} Kxb4 {[%clk
0:00:08]} 56. h5 {[%clk 0:00:35]} Kxa5 {[%clk 0:00:07]} 57. h6 {[%clk 0:00:37]}
Bg8 {[%clk 0:00:08]} 58. Ne4 {[%clk 0:00:38]} c5 {[%clk 0:00:07]} 59. Nxc5
{[%clk 0:00:37]} 1-0

[Variant "Standard"]
[Site "Europe Echecs"]

[Event "Champions Chess Tour Finals 2024"]
[Date "2024.12.19"]
[White "Keymer, Vincent"]
[Black "Vachier-Lagrave, Maxime"]
[WhiteElo "2649"]
[BlackElo "2763"]
[Round "51.2"]
[Result "0-1"]
[TimeControl "600+2"]

1. c4 {[%clk 0:10:02]} Nf6 {[%clk 0:10:03]} 2. g3 {[%clk 0:10:03]} e5 {[%clk
0:09:59]} 3. Bg2 {[%clk 0:10:04]} d5 {[%clk 0:09:57]} 4. cxd5 {[%clk 0:10:04]}
Nxd5 {[%clk 0:09:58]} 5. Nc3 {[%clk 0:10:05]} Nb6 {[%clk 0:09:59]} 6. a3 {[%clk
0:10:07]} Be7 {[%clk 0:09:47]} 7. Nf3 {[%clk 0:09:59]} Nc6 {[%clk 0:09:48]} 8.
b4 {[%clk 0:10:00]} Be6 {[%clk 0:09:09]} 9. O-O {[%clk 0:09:44]} O-O {[%clk
0:09:09]} 10. d3 {[%clk 0:09:30]} f6 {[%clk 0:09:08]} 11. Bb2 {[%clk 0:08:31]}
Qd7 {[%clk 0:08:41]} 12. Rc1 {[%clk 0:07:55]} Rad8 {[%clk 0:07:16]} 13. Ne4
{[%clk 0:07:46]} Bd5 {[%clk 0:07:13]} 14. Qc2 {[%clk 0:07:22]} a6 {[%clk
0:06:55]} 15. Rfd1 {[%clk 0:07:17]} Qe6 {[%clk 0:06:35]} 16. Ned2 {[%clk
0:07:05]} Qf7 {[%clk 0:06:32]} 17. Rb1 {[%clk 0:06:27]} Ba2 {[%clk 0:06:07]} 18.
Ra1 {[%clk 0:06:27]} Be6 {[%clk 0:06:07]} 19. Rdc1 {[%clk 0:06:14]} Rfe8 {[%clk
0:06:00]} 20. Bc3 {[%clk 0:05:18]} Nd5 {[%clk 0:05:50]} 21. Ne4 {[%clk 0:05:19]}
Nxc3 {[%clk 0:05:47]} 22. Qxc3 {[%clk 0:05:20]} Bd5 {[%clk 0:05:44]} 23. e3
{[%clk 0:04:56]} h6 {[%clk 0:03:52]} 24. Rab1 {[%clk 0:04:47]} f5 {[%clk
0:03:28]} 25. Nc5 {[%clk 0:04:48]} Bxc5 {[%clk 0:03:27]} 26. bxc5 {[%clk
0:04:32]} e4 {[%clk 0:03:28]} 27. dxe4 {[%clk 0:04:06]} fxe4 {[%clk 0:03:29]}
28. Ne1 {[%clk 0:03:42]} Ne5 {[%clk 0:03:21]} 29. Rb4 {[%clk 0:03:43]} Bc6
{[%clk 0:02:54]} 30. Rd4 {[%clk 0:03:37]} Rxd4 {[%clk 0:02:28]} 31. Qxd4 {[%clk
0:03:36]} Ng4 {[%clk 0:02:14]} 32. Rc2 {[%clk 0:03:24]} Rf8 {[%clk 0:02:14]} 33.
Qd2 {[%clk 0:03:09]} Qf6 {[%clk 0:01:54]} 34. h3 {[%clk 0:03:04]} Rd8 {[%clk
0:01:55]} 35. Qb4 {[%clk 0:02:56]} Ne5 {[%clk 0:01:55]} 36. Rd2 {[%clk 0:02:57]}
Rxd2 {[%clk 0:01:37]} 37. Qxd2 {[%clk 0:02:58]} Qe7 {[%clk 0:01:38]} 38. Qd4
{[%clk 0:02:54]} Nd7 {[%clk 0:01:38]} 39. Nc2 {[%clk 0:02:21]} Qxc5 {[%clk
0:01:36]} 40. Nb4 {[%clk 0:02:00]} Qxd4 {[%clk 0:01:19]} 41. exd4 {[%clk
0:02:01]} Nf6 {[%clk 0:00:52]} 42. Nxc6 {[%clk 0:01:59]} bxc6 {[%clk 0:00:53]}
43. Bf1 {[%clk 0:01:08]} a5 {[%clk 0:00:54]} 44. Ba6 {[%clk 0:01:03]} Kf7 {[%clk
0:00:52]} 45. Bb7 {[%clk 0:00:50]} c5 {[%clk 0:00:53]} 46. dxc5 {[%clk 0:00:50]}
Ke6 {[%clk 0:00:55]} 47. Kf1 {[%clk 0:00:43]} Ke5 {[%clk 0:00:56]} 48. Ke2
{[%clk 0:00:43]} Kd4 {[%clk 0:00:57]} 49. c6 {[%clk 0:00:42]} Nd5 {[%clk
0:00:57]} 50. Ba6 {[%clk 0:00:35]} Nc3+ {[%clk 0:00:58]} 51. Kd2 {[%clk
0:00:30]} Nb1+ {[%clk 0:00:41]} 52. Kc2 {[%clk 0:00:31]} Nxa3+ {[%clk 0:00:42]}
53. Kb3 {[%clk 0:00:32]} Nb1 {[%clk 0:00:42]} 54. Kc2 {[%clk 0:00:09]} Nc3
{[%clk 0:00:43]} 55. Kb3 {[%clk 0:00:09]} Nd1 {[%clk 0:00:42]} 56. Ka4 {[%clk
0:00:08]} Nxf2 {[%clk 0:00:42]} 57. Be2 {[%clk 0:00:08]} Kc5 {[%clk 0:00:39]}
58. Kxa5 {[%clk 0:00:09]} Kxc6 {[%clk 0:00:38]} 59. Kb4 {[%clk 0:00:10]} Kd5
{[%clk 0:00:38]} 60. Kc3 {[%clk 0:00:11]} Ke5 {[%clk 0:00:38]} 61. h4 {[%clk
0:00:11]} Nh1 {[%clk 0:00:39]} 0-1

[Variant "Standard"]
[Site "Europe Echecs"]